{"text_format":"1","workbook":"xlsx","n_sheets":1,"sheets":["算定基準"],"not_rendered":{"charts":0,"images":0,"macros":0,"external_links":0,"defined_names":10,"comments":1,"pivot_tables":0},"unopened":[],"bounds":{"document_bytes":16777216,"sheet_cells":100000,"rows_first":2000,"rows_last":500,"rows_between":2000,"halvings":0,"cell_chars":16384,"cell_head_chars":4096},"cells_cut":0,"cells_raw":0,"read":"whole","date_system":"1900"}

{"sheet":"算定基準","index":0,"n_rows":43,"n_cols":15,"rows_kept":43,"cut":false,"hidden":false,"merged":[[15,0,20,0],[15,1,17,2],[18,1,20,2],[1,10,1,11],[3,9,4,9],[3,10,4,10],[3,11,4,11],[4,0,14,0],[5,1,10,2],[12,1,14,2]]}
["【別表２】日中一時支援事業に係る算定基準表　【令和６年度改定版】"]
["（改定時は障害者総合支援法に基づく障害福祉サービス費用の算定基準に準じる）",null,null,null,null,null,null,null,null,"地域区分","5級地",null,null,"（１）基本単価Ⅰ(者)"]
["（１）基本単価Ⅰ（平成１８年厚生労働省告示第５２３号より）",null,null,null,null,null,null,null,null,null,null,null,null,6,{"$f":"H6","v":923}]
["対象者",null,null,null,null,null,null,"単位",null,"4時間未満","4時間以上\n8時間未満","8時間以上",null,5,784]
["障害者","(障害者支援施設等で実施した場合）",null,null,null,null,null,null,null,null,null,null,null,4,648]
[null,"福祉型短期入所サービス費（Ⅰ）",null," 区分６",null,null,null,923,null,{"$f":"ROUNDDOWN($H6*VLOOKUP($K$2,$N$18:$O$24,2,FALSE)*VLOOKUP(J$4,$N$27:$O$29,2,FALSE),0)","v":2445},{"$f":"ROUNDDOWN($H6*VLOOKUP($K$2,$N$18:$O$24,2,FALSE)*VLOOKUP(K$4,$N$27:$O$29,2,FALSE),0)","v":4891},{"$f":"ROUNDDOWN($H6*VLOOKUP($K$2,$N$18:$O$24,2,FALSE)*VLOOKUP(L$4,$N$27:$O$29,2,FALSE),0)","v":7337},null,3,583]
[null,null,null," 区分５",null,null,null,784,null,{"$f":"ROUNDDOWN($H7*VLOOKUP($K$2,$N$18:$O$24,2,FALSE)*VLOOKUP(J$4,$N$27:$O$29,2,FALSE),0)","v":2077},4155,6232,null,2,509]
[null,null,null," 区分４",null,null,null,648,null,1717,3434,5151,null,1,509]
[null,null,null," 区分３",null,null,null,583,null,1544,3089,4634,null,"区分なし",{"$f":"H24","v":509}]
[null,null,null," 区分２",null,null,null,509,null,1348,2697,4046]
[null,null,null," 区分１",null,null,null,509,null,1348,2697,4046,null,"（１）基本単価Ⅰ(児)"]
[null,"(療養介護に併設で実施した場合）",null,null,null,null,null,null,null,null,null,null,null,3,{"$f":"H16","v":784}]
[null,"医療型特定短期入所サービス費",null,"医療型特定短期入所サービス費（Ⅰ）",null,null,null,3117,null,8260,16520,24780,null,2,{"$f":"H17","v":615}]
[null,null,null,"医療型特定短期入所サービス費（Ⅱ）",null,null,null,2864,null,7589,15179,22768,null,1,{"$f":"H18","v":509}]
[null,null,null,"医療型特定短期入所サービス費（Ⅲ）",null,null,null,1826,null,4838,9677,14516,null,"区分なし",{"$f":"H24","v":509}]
["障害児","福祉型短期入所サービス費（Ⅲ）",null," 区分３",null,null,null,784,null,2077,4155,6232]
[null,null,null," 区分２",null,null,null,615,null,1629,3259,4889,null,"（３）地域区分率×10円"]
[null,null,null," 区分１",null,null,null,509,null,1348,2697,4046,null,"2級地",{"$f":"A27*10","v":10.96}]
[null,"医療型特定短期入所サービス費",null,"医療型特定短期入所サービス費（Ⅰ）",null,null,null,2938,null,7785,15571,23357,null,"3級地",{"$f":"B27*10","v":10.9}]
[null,null,null,"医療型特定短期入所サービス費（Ⅱ）",null,null,null,2735,null,7247,14495,21743,null,"4級地",{"$f":"C27*10","v":10.72}]
[null,null,null,"医療型特定短期入所サービス費（Ⅲ）",null,null,null,1723,null,4565,9131,13697,null,"5級地",{"$f":"D27*10","v":10.600000000000001}]
["（２）基本単価Ⅱ",null,null,null,null,null,null,null,null,null,null,null,null,"6級地",{"$f":"E27*10","v":10.36}]
["対象者(障害者支援施設等で実施した場合）",null,null,null,null,null,null,"日額",null,null,null,null,null,"7級地",{"$f":"F27*10","v":10.18}]
["基本単価Ⅰ以外の者で、障害支援区分の認定を受けていないもの",null,null,null,null,null,null,509,null,1348,{"$f":"ROUNDDOWN($H24*VLOOKUP($K$2,$N$18:$O$24,2,FALSE)*VLOOKUP(K$4,$N$27:$O$29,2,FALSE),0)","v":2697},4046,null,"その他",{"$f":"G27*10","v":10}]
["（３）地域区分率（平成１８年厚生労働省告示第５３９号より）"]
["2級地","3級地","4級地","5級地","6級地","7級地","その他",null,null,null,null,null,null,"（４）時間区分率"]
[1.0960000000000001,1.0900000000000001,1.0720000000000001,1.06,1.036,1.018,1,null,null,null,null,null,null,"4時間未満",{"$f":"25/100","v":0.25}]
["（４）時間区分率",null,null,null,null,null,null,null,null,null,null,null,null,"4時間以上\n8時間未満",{"$f":"50/100","v":0.5}]
["所要時間",null,null,null,null,null,null,null,null,null,null,null,null,"8時間以上",{"$f":"75/100","v":0.75}]
["4時間未満",null,"4時間以上8時間未満",null,"8時間以上"]
["100分の25",null,"100分の50",null,"100分の75"]
["（５）送迎加算"]
["片道につき",null,540]
["（６）利用者負担"]
["　利用者は、（１）基本単価Ⅰ又は（２）基本単価Ⅱに（３）地域区分率×１０円、およ"]
["び（４）時間区分率を乗じて得た金額に、必要に応じて（５）送迎加算を加えた金額の１"]
["割相当額を実施施設に対して直接支払う（小数点以下切り捨て）。ただし、利用者の１月"]
["当たりの負担額は、次表に定める額を超えないものとする。"]
["区分","生活保護世帯又は",null,"市町村民税非課税世帯",null,"市町村民税課税"]
[null,"支援給付受給世帯",null,null,null,"世帯"]
["負担額",0,null,0,null,900]
["～算定方法～"]
["（(１)又は(２)）×(３)×１０円×(４)＋(５)－(６)　※小数点以下切り捨て"]